[Event "EYCC Open-U14 2019"]
[Site "Bratislava"]
[Date "2019.08.08"]
[Round "7.13"]
[White "Levin, Guy"]
[Black "Razafindratsima, Timothe"]
[Result "1-0"]
[ECO "A37"]
[WhiteElo "2005"]
[BlackElo "2178"]
[Annotator "NA"]
[PlyCount "101"]
[EventDate "2019.08.02"]
[EventType "swiss"]
[EventCountry "SVK"]
[SourceTitle "playchess.com"]
[Source "ChessBase"]
[SourceQuality "1"]
[TimeControl "40/5400+30:1800+30"]

1. Nf3 {[%emt 0:00:00]} c5 {[%emt 0:00:00]} 2. c4 {[%emt 0:00:00]} Nc6 {[%emt 0:00:00]} 3. Nc3 {[%emt 0:00:11]} g6 {[%emt 0:00:00]} 4. g3 {[%emt 0:00:35]} Bg7 {[%emt 0:00:04]} 5. Bg2 {[%emt 0:00:02]} e6 {[%emt 0:00:09]} 6. O-O {[%emt 0:04:44]} Nge7 {[%emt 0:00:16]} 7. e3 {[%emt 0:04:49]} O-O {[%emt 0:00:59]} 8. d4 {[%emt 0:00:39]} d6 {[%emt 0:00:59]} 9. b3 {[%emt 0:02:33]} cxd4 {[%emt 0:02:21]} 10. Nxd4 {[%emt 0:00:20]} Nxd4 {[%emt 0:03:01]} 11. exd4 {[%emt 0:00:56]} Nf5 {[%emt 0:00:14]} 12. Ne2 {[%emt 0:04:08]} Rb8 {[%emt 0:00:18]} 13. Qd3 {[%emt 0:14:36]} Bd7 {[%emt 0:02:48]} 14. Rb1 {[%emt 0:09:27]} b5 {[%emt 0:01:27]} 15. c5 {[%emt 0:00:41]} Qc7 {[%emt 0:01:40]} 16. Bf4 {[%emt 0:11:19]} e5 {[%emt 0:00:18]} 17. dxe5 {[%emt 0:00:19]} dxe5 {[%emt 0:00:26]} 18. c6 {[%emt 0:03:05]} Bxc6 {[%emt 0:01:18]} 19. Rbc1 {[%emt 0:01:05]} Qd7 {[%emt 0:01:33]} 20. Qxd7 {[%emt 0:01:02]} Bxd7 {[%emt 0:00:03]} 21. Rc7 {[%emt 0:00:08]} Be6 {[%emt 0:01:17]} 22. Bd2 {[%emt 0:02:51]} Rbc8 {[%emt 0:01:18]} 23. Rfc1 {[%emt 0:01:04]} Rxc7 {[%emt 0:00:19]} 24. Rxc7 {[%emt 0:00:04]} Rd8 {[%emt 0:00:05]} 25. Bb4 {[%emt 0:01:41]} Rd1+ {[%emt 0:09:49]} 26. Bf1 {[%emt 0:00:01]} Nd4 {[%emt 0:02:32]} 27. Nc3 {[%emt 0:01:11]} Ra1 {[%emt 0:02:16]} 28. Kg2 {[%emt 0:01:46]} Nc2 {[%emt 0:01:43]} 29. Bd6 {[%emt 0:00:58]} Ne1+ {[%emt 0:00:15]} 30. Kg1 {[%emt 0:00:02]} h5 {[%emt 0:13:51]} 31. h4 {[%emt 0:02:52]} b4 {[%emt 0:02:05]} 32. Ne4 {[%emt 0:05:16]} Bd5 {[%emt 0:03:23]} 33. Rc8+ {[%emt 0:01:55]} Kh7 {[%emt 0:00:09]} 34. Ng5+ {[%emt 0:00:02]} Kh6 {[%emt 0:00:08]} 35. Bxb4 {[%emt 0:01:08]} f6 {[%emt 0:11:59]} 36. Rd8 {[%emt 0:03:11]} Bc6 {[%emt 0:12:49]} 37. Rc8 {[%emt 0:00:57]} Bd7 {[%emt 0:00:25]} 38. Rc7 {[%emt 0:00:19]} Bg4 {[%emt 0:00:44]} 39. Bf8 {[%emt 0:00:15]} Nf3+ {[%emt 0:00:18]} 40. Kg2 {[%emt 0:00:00]} Ne1+ {[%emt 0:00:00]} 41. Kh1 {[%emt 0:01:53]} fxg5 {[%emt 0:01:39]} 42. Bxg7+ {[%emt 0:00:07]} Kh7 {[%emt 0:00:06]} 43. Bxe5+ {[%emt 0:00:08]} Kg8 {[%emt 0:00:05]} 44. Bxa1 {[%emt 0:00:07]} gxh4 {[%emt 0:00:05]} 45. Bc4+ {[%emt 0:00:50]} Kf8 {[%emt 0:00:04]} 46. gxh4 {[%emt 0:00:52]} Nf3 {[%emt 0:00:05]} 47. Bf6 {[%emt 0:00:39]} Bf5 {[%emt 0:00:09]} 48. Rxa7 {[%emt 0:00:31]} Be4 {[%emt 0:00:03]} 49. Rf7+ {[%emt 0:00:09]} Kg8 {[%emt 0:00:12]} 50. Rg7+ {[%emt 0:00:12]} Kh8 {[%emt 0:00:04]} 51. Rb7# {[%emt 0:00:13]} 1-0

[Event "EYCC Open-U14 2019"]
[Site "Bratislava"]
[Date "2019.08.08"]
[Round "7.14"]
[White "Tsaruk, Maksim"]
[Black "Unneland, Mathias"]
[Result "1-0"]
[ECO "C07"]
[WhiteElo "2230"]
[BlackElo "1966"]
[Annotator "NA"]
[PlyCount "61"]
[EventDate "2019.08.02"]
[EventType "swiss"]
[EventCountry "SVK"]
[SourceTitle "playchess.com"]
[Source "ChessBase"]
[SourceQuality "1"]
[TimeControl "40/5400+30:1800+30"]

1. e4 {[%emt 0:00:00]} e6 {[%emt 0:00:00]} 2. d4 {[%emt 0:00:00]} d5 {[%emt 0:00:00]} 3. Nd2 {[%emt 0:00:00]} c5 {[%emt 0:00:00]} 4. exd5 {[%emt 0:00:00]} Qd7 {[%emt 0:00:00]} 5. dxc5 {[%emt 0:00:00]} Qxd5 {[%emt 0:01:40]} 6. Ngf3 {[%emt 0:00:00]} Nf6 {[%emt 0:00:58]} 7. Be2 Bxc5 8. Bc4 {[%emt 0:00:35]} Qd8 {[%emt 0:05:40]} 9. Qe2 {[%emt 0:00:23]} a6 {[%emt 0:02:24]} 10. O-O {[%emt 0:02:36]} Nbd7 {[%emt 0:03:35]} 11. a4 {[%emt 0:06:39]} b6 {[%emt 0:05:50]} 12. Ne4 {[%emt 0:05:22]} Nxe4 {[%emt 0:05:10]} 13. Qxe4 {[%emt 0:00:05]} Rb8 {[%emt 0:03:37]} 14. Qe2 {[%emt 0:43:07]} Ra8 {[%emt 0:07:34]} 15. Qe4 {[%emt 0:00:01]} Rb8 {[%emt 0:00:22]} 16. Qe2 {[%emt 0:03:31]} Ra8 {[%emt 0:00:52]} 17. Rd1 {[%emt 0:00:01]} Qc7 {[%emt 0:03:47]} 18. Bd3 {[%emt 0:07:07]} Bb7 {[%emt 0:03:49]} 19. Bg5 {[%emt 0:01:59]} Bd6 {[%emt 0:02:11]} 20. Be4 {[%emt 0:00:28]} Nc5 {[%emt 0:01:53]} 21. Bxb7 {[%emt 0:00:28]} Nxb7 {[%emt 0:00:09]} 22. Rd4 {[%emt 0:01:33]} O-O {[%emt 0:10:33]} 23. Rad1 {[%emt 0:00:03]} Rfe8 {[%emt 0:00:38]} 24. Rc4 {[%emt 0:06:54]} Qb8 {[%emt 0:00:29]} 25. c3 {[%emt 0:02:09]} f6 {[%emt 0:08:16]} 26. Be3 {[%emt 0:02:00]} Nc5 {[%emt 0:07:40]} 27. a5 {[%emt 0:02:14]} e5 {[%emt 0:04:57]} 28. axb6 {[%emt 0:01:00]} e4 {[%emt 0:00:26]} 29. Bxc5 {[%emt 0:00:38]} exf3 {[%emt 0:00:24]} 30. Qxf3 {[%emt 0:00:07]} Bxh2+ {[%emt 0:02:58]} 31. Kh1 {[%emt 0:00:14]} 1-0

[Event "EYCC Open-U14 2019"]
[Site "Bratislava"]
[Date "2019.08.08"]
[Round "7.15"]
[White "Pasztor, Balazs"]
[Black "Bochnicka, Vladimir"]
[Result "1-0"]
[ECO "C42"]
[WhiteElo "2140"]
[BlackElo "2169"]
[Annotator "NA"]
[PlyCount "67"]
[EventDate "2019.08.02"]
[EventType "swiss"]
[EventCountry "SVK"]
[SourceTitle "playchess.com"]
[Source "ChessBase"]
[SourceQuality "1"]
[TimeControl "40/5400+30:1800+30"]

1. e4 {[%emt 0:00:00]} e5 {[%emt 0:00:00]} 2. Nf3 {[%emt 0:00:00]} Nf6 {[%emt 0:00:00]} 3. Nxe5 {[%emt 0:00:00]} d6 {[%emt 0:00:00]} 4. Nf3 {[%emt 0:00:11]} Nxe4 {[%emt 0:00:00]} 5. Bd3 {[%emt 0:00:12]} Nc5 {[%emt 0:16:20]} 6. Be2 {[%emt 0:00:22]} Be7 {[%emt 0:01:13]} 7. d4 {[%emt 0:01:27]} Ne4 {[%emt 0:04:23]} 8. O-O {[%emt 0:03:26]} O-O {[%emt 0:01:34]} 9. c4 {[%emt 0:03:17]} Bf5 {[%emt 0:07:38]} 10. Re1 {[%emt 0:06:31]} d5 {[%emt 0:05:43]} 11. Qb3 {[%emt 0:08:13]} dxc4 {[%emt 0:09:40]} 12. Qxb7 {[%emt 0:08:20]} Nd7 {[%emt 0:00:40]} 13. Qc6 {[%emt 0:05:30]} Nd6 {[%emt 0:08:34]} 14. Bxc4 {[%emt 0:13:21]} Rb8 {[%emt 0:08:05]} 15. Bb3 {[%emt 0:05:49]} Bf6 {[%emt 0:10:03]} 16. Bf4 {[%emt 0:04:07]} Rb6 {[%emt 0:02:04]} 17. Qc1 {[%emt 0:01:26]} Nb5 {[%emt 0:10:54]} 18. Be3 {[%emt 0:09:27]} Rd6 {[%emt 0:06:14]} 19. Nc3 {[%emt 0:02:54]} c6 {[%emt 0:02:20]} 20. Bf4 {[%emt 0:02:32]} Rxd4 {[%emt 0:01:13]} 21. Nxb5 {[%emt 0:01:59]} cxb5 {[%emt 0:00:31]} 22. Nxd4 {[%emt 0:00:31]} Bxd4 {[%emt 0:00:01]} 23. Bd6 {[%emt 0:04:37]} Qh4 {[%emt 0:02:29]} 24. Qd2 {[%emt 0:01:34]} Rc8 {[%emt 0:01:27]} 25. Re7 {[%emt 0:03:23]} Nf6 {[%emt 0:00:48]} 26. Rxf7 {[%emt 0:03:12]} Kh8 {[%emt 0:00:00]} 27. Bg3 {[%emt 0:01:22]} Qg4 {[%emt 0:00:29]} 28. Rd1 {[%emt 0:01:39]} Re8 {[%emt 0:00:43]} 29. h3 {[%emt 0:01:24]} Qxg3 {[%emt 0:00:31]} 30. Qxd4 {[%emt 0:00:10]} Qg6 {[%emt 0:00:08]} 31. Qd8 {[%emt 0:03:29]} h6 {[%emt 0:00:52]} 32. Qxe8+ {[%emt 0:01:05]} Kh7 {[%emt 0:00:45]} 33. Qe3 {[%emt 0:00:29]} Be4 {[%emt 0:00:16]} 34. Qg3 {[%emt 0:00:13]} 1-0

[Event "EYCC Open-U14 2019"]
[Site "Bratislava"]
[Date "2019.08.08"]
[Round "7.16"]
[White "Poltorak, Sebastian"]
[Black "Yaniv, Yuval"]
[Result "0-1"]
[ECO "D35"]
[WhiteElo "2068"]
[BlackElo "2135"]
[Annotator "NA"]
[PlyCount "62"]
[EventDate "2019.08.02"]
[EventType "swiss"]
[EventCountry "SVK"]
[SourceTitle "playchess.com"]
[Source "ChessBase"]
[SourceQuality "1"]
[TimeControl "40/5400+30:1800+30"]

1. d4 {[%emt 0:00:00]} Nf6 {[%emt 0:00:00]} 2. c4 {[%emt 0:00:00]} e6 {[%emt 0:01:52]} 3. Nc3 {[%emt 0:00:00]} d5 {[%emt 0:01:17]} 4. cxd5 {[%emt 0:00:27]} exd5 {[%emt 0:00:41]} 5. Bg5 {[%emt 0:00:11]} c6 {[%emt 0:00:14]} 6. e3 {[%emt 0:00:26]} h6 {[%emt 0:01:18]} 7. Bh4 {[%emt 0:00:18]} Be6 {[%emt 0:01:07]} 8. Bd3 {[%emt 0:00:29]} Nbd7 {[%emt 0:00:40]} 9. Nge2 {[%emt 0:00:47]} g5 {[%emt 0:02:08]} 10. Bg3 {[%emt 0:00:09]} Nh5 {[%emt 0:00:45]} 11. Qc2 {[%emt 0:03:38]} Nxg3 {[%emt 0:01:20]} 12. Nxg3 {[%emt 0:02:29]} h5 {[%emt 0:01:06]} 13. Bf5 {[%emt 0:03:40]} Qf6 {[%emt 0:04:06]} 14. O-O-O {[%emt 0:07:56]} h4 {[%emt 0:05:10]} 15. Bxe6 {[%emt 0:00:08]} fxe6 {[%emt 0:00:23]} 16. Nf1 {[%emt 0:00:38]} Bg7 {[%emt 0:09:07]} 17. e4 {[%emt 0:03:51]} O-O {[%emt 0:03:26]} 18. f3 {[%emt 0:01:50]} c5 {[%emt 0:03:15]} 19. exd5 {[%emt 0:12:42]} cxd4 {[%emt 0:00:29]} 20. Ne4 {[%emt 0:00:42]} Qe5 {[%emt 0:12:25]} 21. Kb1 {[%emt 0:09:41]} exd5 {[%emt 0:00:37]} 22. Nf2 {[%emt 0:00:31]} Rac8 {[%emt 0:01:45]} 23. Ng4 {[%emt 0:02:14]} Rxc2 {[%emt 0:01:36]} 24. Nxe5 {[%emt 0:00:11]} Rfc8 {[%emt 0:00:39]} 25. Nd3 {[%emt 0:03:41]} Ne5 {[%emt 0:04:02]} 26. Ne1 {[%emt 0:01:16]} d3 {[%emt 0:01:29]} 27. Ne3 {[%emt 0:02:12]} Re2 {[%emt 0:00:38]} 28. Nf5 {[%emt 0:00:49]} Rcc2 {[%emt 0:04:55]} 29. Nxd3 {[%emt 0:03:33]} Nxd3 {[%emt 0:00:25]} 30. Rxd3 {[%emt 0:00:09]} Rxb2+ {[%emt 0:00:09]} 31. Kc1 {[%emt 0:00:07]} Rxa2 {[%emt 0:00:37]} 0-1

[Event "EYCC Open-U14 2019"]
[Site "Bratislava"]
[Date "2019.08.08"]
[Round "7.17"]
[White "Shoshin, Kirill"]
[Black "Talibov, Shiroghlan"]
[Result "0-1"]
[ECO "A45"]
[WhiteElo "2089"]
[BlackElo "1882"]
[Annotator "NA"]
[PlyCount "38"]
[EventDate "2019.08.02"]
[EventType "swiss"]
[EventCountry "SVK"]
[SourceTitle "playchess.com"]
[Source "ChessBase"]
[SourceQuality "1"]
[TimeControl "40/5400+30:1800+30"]

1. d4 {[%emt 0:00:00]} Nf6 {[%emt 0:00:00]} 2. Bg5 {[%emt 0:00:00]} e6 {[%emt 0:00:33]} 3. e4 {[%emt 0:00:00]} h6 {[%emt 0:00:04]} 4. Bxf6 {[%emt 0:00:00]} Qxf6 {[%emt 0:00:05]} 5. Nc3 {[%emt 0:00:04]} Bb4 {[%emt 0:02:42]} 6. Nge2 {[%emt 0:04:21]} d5 {[%emt 0:04:48]} 7. a3 {[%emt 0:03:00]} Bxc3+ {[%emt 0:02:41]} 8. Nxc3 {[%emt 0:00:14]} c6 {[%emt 0:01:55]} 9. g3 {[%emt 0:02:02]} b6 {[%emt 0:03:29]} 10. Bg2 {[%emt 0:00:17]} Ba6 {[%emt 0:00:26]} 11. Qd2 {[%emt 0:02:29]} O-O {[%emt 0:02:09]} 12. O-O-O {[%emt 0:00:18]} Rd8 {[%emt 0:01:37]} 13. f4 {[%emt 0:00:56]} Bb7 {[%emt 0:01:43]} 14. g4 {[%emt 0:05:10]} Qe7 {[%emt 0:07:30]} 15. e5 {[%emt 0:02:21]} c5 {[%emt 0:02:06]} 16. Ne2 {[%emt 0:04:03]} Nc6 {[%emt 0:00:40]} 17. f5 {[%emt 0:07:32]} Qg5 {[%emt 0:04:44]} 18. Nf4 {[%emt 0:04:53]} Nxd4 {[%emt 0:03:28]} 19. h4 {[%emt 0:00:20]} Qxf4 {[%emt 0:00:13]} 0-1

[Event "EYCC Open-U14 2019"]
[Site "Bratislava"]
[Date "2019.08.08"]
[Round "7.18"]
[White "Grigoryan, Aram"]
[Black "Dzida, Kamil"]
[Result "1-0"]
[ECO "E46"]
[WhiteElo "1947"]
[BlackElo "1987"]
[Annotator "NA"]
[PlyCount "75"]
[EventDate "2019.08.02"]
[EventType "swiss"]
[EventCountry "SVK"]
[SourceTitle "playchess.com"]
[Source "ChessBase"]
[SourceQuality "1"]
[TimeControl "40/5400+30:1800+30"]

1. d4 {[%emt 0:00:53]} Nf6 {[%emt 0:00:00]} 2. c4 {[%emt 0:00:05]} e6 {[%emt 0:00:00]} 3. Nc3 {[%emt 0:00:03]} Bb4 {[%emt 0:00:00]} 4. e3 {[%emt 0:00:04]} O-O {[%emt 0:00:00]} 5. Nge2 {[%emt 0:00:05]} Re8 {[%emt 0:00:00]} 6. a3 {[%emt 0:00:19]} Bf8 {[%emt 0:00:05]} 7. Ng3 {[%emt 0:01:17]} d5 {[%emt 0:00:16]} 8. cxd5 {[%emt 0:05:00]} exd5 {[%emt 0:00:07]} 9. Bd3 {[%emt 0:00:03]} Nbd7 {[%emt 0:04:45]} 10. O-O {[%emt 0:00:32]} b6 {[%emt 0:01:22]} 11. b4 {[%emt 0:06:22]} c6 {[%emt 0:01:35]} 12. Qb3 {[%emt 0:12:11]} g6 {[%emt 0:04:02]} 13. Bd2 {[%emt 0:04:56]} Bb7 {[%emt 0:00:00]} 14. Rfc1 {[%emt 0:02:12]} Bg7 {[%emt 0:21:01]} 15. Rab1 h5 {[%emt 0:03:47]} 16. h3 {[%emt 0:09:50]} Qe7 {[%emt 0:05:40]} 17. a4 {[%emt 0:07:56]} Rab8 {[%emt 0:02:28]} 18. Qa2 {[%emt 0:11:58]} Rec8 {[%emt 0:15:14]} 19. a5 {[%emt 0:06:49]} Bf8 {[%emt 0:13:54]} 20. Na4 {[%emt 0:04:23]} h4 {[%emt 0:01:00]} 21. Nf1 {[%emt 0:03:04]} Ne4 {[%emt 0:00:25]} 22. Be1 {[%emt 0:00:17]} Bh6 {[%emt 0:05:48]} 23. Rb2 {[%emt 0:07:16]} c5 {[%emt 0:03:33]} 24. bxc5 {[%emt 0:01:54]} bxc5 {[%emt 0:01:41]} 25. dxc5 {[%emt 0:00:04]} Ndxc5 {[%emt 0:00:58]} 26. Nxc5 {[%emt 0:00:05]} Nxc5 {[%emt 0:00:40]} 27. Bb4 {[%emt 0:02:17]} Bf8 {[%emt 0:02:44]} 28. Qa3 {[%emt 0:01:55]} d4 {[%emt 0:01:48]} 29. Rxc5 {[%emt 0:05:00]} Rxc5 {[%emt 0:05:31]} 30. Bxc5 {[%emt 0:00:27]} Qg5 {[%emt 0:01:12]} 31. Rxb7 {[%emt 0:00:05]} Rxb7 {[%emt 0:00:04]} 32. Bxf8 {[%emt 0:00:06]} dxe3 {[%emt 0:00:03]} 33. Bc5 {[%emt 0:00:31]} exf2+ {[%emt 0:00:03]} 34. Bxf2 {[%emt 0:00:05]} Rd7 {[%emt 0:00:13]} 35. Be2 {[%emt 0:00:39]} Rd5 {[%emt 0:00:10]} 36. a6 {[%emt 0:00:11]} Re5 {[%emt 0:00:06]} 37. Qd3 {[%emt 0:00:30]} Kh7 {[%emt 0:00:11]} 38. Bxa7 {[%emt 0:00:12]} 1-0

[Event "EYCC Open-U14 2019"]
[Site "Bratislava"]
[Date "2019.08.08"]
[Round "7.19"]
[White "Sokolovsky, Yahli"]
[Black "Sahakyan, Aleks"]
[Result "1-0"]
[ECO "A01"]
[WhiteElo "2093"]
[BlackElo "1856"]
[Annotator "NA"]
[PlyCount "137"]
[EventDate "2019.08.02"]
[EventType "swiss"]
[EventCountry "SVK"]
[SourceTitle "playchess.com"]
[Source "ChessBase"]
[SourceQuality "1"]
[TimeControl "40/5400+30:1800+30"]

1. b3 {[%emt 0:00:00]} e5 {[%emt 0:00:39]} 2. Bb2 {[%emt 0:00:00]} Nc6 {[%emt 0:00:24]} 3. e3 {[%emt 0:00:00]} d5 {[%emt 0:00:48]} 4. Bb5 {[%emt 0:00:00]} f6 {[%emt 0:00:06]} 5. d4 {[%emt 0:07:00]} e4 {[%emt 0:02:32]} 6. c4 {[%emt 0:01:00]} a6 {[%emt 0:00:07]} 7. Bxc6+ {[%emt 0:05:08]} bxc6 {[%emt 0:00:19]} 8. Nc3 {[%emt 0:00:59]} f5 {[%emt 0:04:20]} 9. Nge2 {[%emt 0:03:53]} Nf6 {[%emt 0:00:14]} 10. Qc1 {[%emt 0:02:52]} Be6 {[%emt 0:05:34]} 11. cxd5 {[%emt 0:02:02]} cxd5 {[%emt 0:00:43]} 12. Ba3 {[%emt 0:02:10]} Bd6 {[%emt 0:02:54]} 13. Bxd6 {[%emt 0:07:08]} Qxd6 {[%emt 0:00:13]} 14. Na4 {[%emt 0:00:55]} Bd7 {[%emt 0:03:23]} 15. Nc5 {[%emt 0:00:43]} Bb5 {[%emt 0:02:20]} 16. Nf4 {[%emt 0:12:27]} O-O {[%emt 0:03:33]} 17. h4 {[%emt 0:06:35]} a5 {[%emt 0:06:01]} 18. a4 {[%emt 0:03:59]} Ba6 {[%emt 0:00:23]} 19. Qc3 {[%emt 0:01:10]} Qb6 {[%emt 0:12:54]} 20. Rh3 {[%emt 0:02:37]} Bc8 {[%emt 0:12:03]} 21. Rg3 {[%emt 0:02:40]} Kf7 {[%emt 0:02:50]} 22. Rc1 {[%emt 0:02:04]} Ra7 {[%emt 0:01:23]} 23. Rg5 {[%emt 0:04:03]} Rg8 {[%emt 0:10:33]} 24. Qd2 {[%emt 0:03:53]} g6 {[%emt 0:01:59]} 25. h5 {[%emt 0:07:50]} c6 {[%emt 0:05:47]} 26. hxg6+ {[%emt 0:06:12]} hxg6 {[%emt 0:00:02]} 27. Qe2 {[%emt 0:03:24]} Ng4 {[%emt 0:01:55]} 28. f3 {[%emt 0:02:02]} exf3 {[%emt 0:00:22]} 29. Qxf3 {[%emt 0:03:36]} Nxe3 {[%emt 0:01:18]} 30. Nfd3 {[%emt 0:05:00]} Re7 {[%emt 0:05:25]} 31. Ne5+ {[%emt 0:00:13]} Rxe5 {[%emt 0:00:00]} 32. dxe5 {[%emt 0:00:08]} Qb4+ {[%emt 0:00:01]} 33. Ke2 {[%emt 0:00:45]} Ng4 {[%emt 0:00:20]} 34. Nd3 {[%emt 0:03:30]} Qe4+ {[%emt 0:03:40]} 35. Kd2 {[%emt 0:00:36]} Ba6 {[%emt 0:01:35]} 36. Rxg4 {[%emt 0:00:45]} Qxg4 {[%emt 0:01:46]} 37. Qxg4 {[%emt 0:00:29]} fxg4 {[%emt 0:00:04]} 38. Rxc6 {[%emt 0:00:35]} Bxd3 {[%emt 0:01:26]} 39. Kxd3 {[%emt 0:00:14]} Rh8 40. Rf6+ {[%emt 0:00:00]} Kg7 {[%emt 0:00:00]} 41. Kd4 {[%emt 0:07:33]} Rb8 {[%emt 0:05:09]} 42. Kxd5 {[%emt 0:01:04]} Rxb3 {[%emt 0:00:19]} 43. Rf4 {[%emt 0:08:21]} g3 {[%emt 0:05:12]} 44. e6 {[%emt 0:08:10]} Rb2 {[%emt 0:00:41]} 45. Rf7+ {[%emt 0:01:45]} Kg8 {[%emt 0:00:27]} 46. Rf3 {[%emt 0:02:48]} Kg7 {[%emt 0:07:22]} 47. Rxg3 {[%emt 0:00:55]} Kf6 {[%emt 0:00:11]} 48. Rf3+ {[%emt 0:00:49]} Ke7 {[%emt 0:00:01]} 49. Rf7+ {[%emt 0:00:07]} Ke8 {[%emt 0:00:01]} 50. g4 {[%emt 0:01:54]} Rb4 {[%emt 0:02:33]} 51. g5 {[%emt 0:00:15]} Rxa4 {[%emt 0:01:16]} 52. Ke5 {[%emt 0:00:27]} Ra1 {[%emt 0:01:33]} 53. Kf6 {[%emt 0:00:19]} a4 {[%emt 0:03:25]} 54. Ra7 {[%emt 0:00:23]} Rf1+ {[%emt 0:00:09]} 55. Kxg6 {[%emt 0:00:05]} Re1 {[%emt 0:01:57]} 56. Kf6 {[%emt 0:00:06]} Rf1+ {[%emt 0:00:11]} 57. Kg7 {[%emt 0:00:07]} Re1 {[%emt 0:00:19]} 58. Rxa4 {[%emt 0:01:44]} Rxe6 {[%emt 0:00:03]} 59. Ra7 {[%emt 0:01:10]} Re1 {[%emt 0:00:15]} 60. g6 {[%emt 0:00:38]} Rh1 {[%emt 0:00:32]} 61. Kg8 {[%emt 0:00:21]} Rg1 {[%emt 0:00:10]} 62. g7 {[%emt 0:00:38]} Rh1 {[%emt 0:00:01]} 63. Ra2 {[%emt 0:00:35]} Rh3 {[%emt 0:00:08]} 64. Re2+ {[%emt 0:00:09]} Kd7 65. Re4 {[%emt 0:00:38]} Rh1 {[%emt 0:00:10]} 66. Kf7 {[%emt 0:00:25]} Rf1+ {[%emt 0:00:04]} 67. Kg6 {[%emt 0:00:11]} Rg1+ {[%emt 0:00:02]} 68. Kf6 {[%emt 0:00:18]} Rf1+ {[%emt 0:00:02]} 69. Kg5 {[%emt 0:00:14]} 1-0

[Event "EYCC Open-U14 2019"]
[Site "Bratislava"]
[Date "2019.08.08"]
[Round "7.20"]
[White "Andrijashkin, Deniss"]
[Black "Guz, Ari"]
[Result "1/2-1/2"]
[ECO "B40"]
[WhiteElo "1862"]
[BlackElo "2165"]
[Annotator "NA"]
[PlyCount "40"]
[EventDate "2019.08.02"]
[EventType "swiss"]
[EventCountry "SVK"]
[SourceTitle "playchess.com"]
[Source "ChessBase"]
[SourceQuality "1"]
[TimeControl "40/5400+30:1800+30"]

1. e4 {[%emt 0:00:00]} c5 {[%emt 0:00:00]} 2. Nf3 {[%emt 0:00:00]} e6 {[%emt 0:00:00]} 3. g3 {[%emt 0:00:00]} Nc6 {[%emt 0:00:19]} 4. Bg2 d5 {[%emt 0:00:18]} 5. exd5 {[%emt 0:02:14]} Qxd5 {[%emt 0:00:21]} 6. O-O {[%emt 0:04:41]} Nf6 {[%emt 0:01:02]} 7. Nc3 {[%emt 0:04:05]} Qd8 {[%emt 0:00:15]} 8. d3 {[%emt 0:04:17]} Be7 {[%emt 0:01:18]} 9. Nd2 {[%emt 0:12:43]} O-O {[%emt 0:00:39]} 10. Nc4 {[%emt 0:01:46]} Nd5 {[%emt 0:05:05]} 11. Nxd5 {[%emt 0:02:49]} exd5 {[%emt 0:00:18]} 12. Ne3 {[%emt 0:00:09]} Be6 {[%emt 0:09:15]} 13. c4 {[%emt 0:02:43]} dxc4 {[%emt 0:06:08]} 14. dxc4 {[%emt 0:00:27]} Bf6 {[%emt 0:01:28]} 15. Nd5 {[%emt 0:07:15]} Bd4 {[%emt 0:00:23]} 16. Be3 {[%emt 0:11:06]} Bxe3 {[%emt 0:07:13]} 17. Nxe3 {[%emt 0:01:28]} Nd4 {[%emt 0:00:26]} 18. b3 {[%emt 0:02:28]} Qd7 {[%emt 0:02:25]} 19. Qh5 {[%emt 0:03:59]} Rac8 {[%emt 0:00:12]} 20. Rad1 {[%emt 0:00:34]} b6 {[%emt 0:00:39]} 1/2-1/2

[Event "EYCC Open-U14 2019"]
[Site "Bratislava"]
[Date "2019.08.08"]
[Round "7.21"]
[White "Fernandez Lopez, Ruben"]
[Black "Sobek, Michal"]
[Result "0-1"]
[ECO "B35"]
[WhiteElo "2207"]
[BlackElo "2101"]
[Annotator "NA"]
[PlyCount "98"]
[EventDate "2019.08.02"]
[EventType "swiss"]
[EventCountry "SVK"]
[SourceTitle "playchess.com"]
[Source "ChessBase"]
[SourceQuality "1"]
[TimeControl "40/5400+30:1800+30"]

1. e4 {[%emt 0:00:00]} c5 {[%emt 0:00:00]} 2. Nf3 {[%emt 0:00:00]} Nc6 {[%emt 0:00:00]} 3. d4 {[%emt 0:00:00]} cxd4 {[%emt 0:00:00]} 4. Nxd4 {[%emt 0:00:03]} g6 {[%emt 0:00:04]} 5. Nc3 {[%emt 0:00:15]} Bg7 {[%emt 0:00:10]} 6. Be3 {[%emt 0:00:19]} Nf6 {[%emt 0:00:09]} 7. Bc4 {[%emt 0:00:22]} O-O {[%emt 0:00:13]} 8. Bb3 {[%emt 0:00:09]} d6 {[%emt 0:00:21]} 9. f3 {[%emt 0:00:11]} Bd7 {[%emt 0:00:09]} 10. Qd2 {[%emt 0:00:35]} Nxd4 {[%emt 0:00:18]} 11. Bxd4 {[%emt 0:00:09]} b5 {[%emt 0:00:22]} 12. h4 {[%emt 0:00:11]} h5 {[%emt 0:00:29]} 13. g4 {[%emt 0:00:11]} hxg4 {[%emt 0:01:39]} 14. h5 {[%emt 0:00:09]} Nxh5 {[%emt 0:08:06]} 15. Bxg7 {[%emt 0:00:55]} Kxg7 {[%emt 0:00:08]} 16. Rxh5 {[%emt 0:00:09]} Rh8 {[%emt 0:04:29]} 17. Rxh8 {[%emt 0:00:46]} Qxh8 {[%emt 0:00:07]} 18. O-O-O {[%emt 0:00:45]} gxf3 {[%emt 0:03:08]} 19. Nd5 {[%emt 0:01:25]} Qh4 {[%emt 0:02:31]} 20. Qc3+ {[%emt 0:00:06]} e5 {[%emt 0:01:39]} 21. Qc7 {[%emt 0:14:35]} Be6 {[%emt 0:03:40]} 22. Qxd6 {[%emt 0:01:22]} Qxe4 {[%emt 0:01:27]} 23. Nc7 {[%emt 0:00:18]} Bxb3 {[%emt 0:04:04]} 24. axb3 {[%emt 0:00:01]} Qf4+ {[%emt 0:18:30]} 25. Kb1 {[%emt 0:00:22]} Rf8 {[%emt 0:10:44]} 26. Qe7 {[%emt 0:01:04]} Qf5 {[%emt 0:04:30]} 27. Ne8+ {[%emt 0:01:18]} Rxe8 {[%emt 0:00:04]} 28. Qxe8 {[%emt 0:00:01]} f2 {[%emt 0:00:18]} 29. Rf1 {[%emt 0:02:54]} e4 {[%emt 0:00:34]} 30. Qc6 {[%emt 0:00:02]} Qf3 {[%emt 0:02:31]} 31. Qd5 {[%emt 0:00:14]} Kh7 {[%emt 0:02:40]} 32. Ka2 {[%emt 0:01:30]} f5 {[%emt 0:08:46]} 33. Qf7+ {[%emt 0:02:33]} Kh6 {[%emt 0:00:08]} 34. Qf8+ {[%emt 0:00:40]} Kg5 {[%emt 0:00:48]} 35. Qe7+ {[%emt 0:01:31]} Kg4 {[%emt 0:00:40]} 36. Qf6 {[%emt 0:02:08]} g5 {[%emt 0:04:10]} 37. Qd4 {[%emt 0:09:07]} Kg3 {[%emt 0:01:19]} 38. Qh8 {[%emt 0:02:40]} e3 {[%emt 0:02:29]} 39. Qh6 {[%emt 0:00:11]} g4 {[%emt 0:00:41]} 40. Rh1 {[%emt 0:00:00]} Qxh1 {[%emt 0:00:00]} 41. Qxh1 {[%emt 0:01:40]} e2 {[%emt 0:00:12]} 42. Qd5 {[%emt 0:00:13]} f1=Q {[%emt 0:00:45]} 43. Qd3+ {[%emt 0:00:04]} Kg2 {[%emt 0:00:24]} 44. Qd2 {[%emt 0:00:05]} Kg1 {[%emt 0:00:08]} 45. Qd4+ {[%emt 0:00:47]} Qf2 {[%emt 0:00:10]} 46. Qd5 {[%emt 0:00:13]} e1=Q {[%emt 0:00:20]} 47. Qxb5 {[%emt 0:00:01]} Qb6 {[%emt 0:00:21]} 48. Qa4 {[%emt 0:00:44]} Qba5 {[%emt 0:00:26]} 49. c3 {[%emt 0:00:09]} Qxa4+ {[%emt 0:00:19]} 0-1